[Event "*** Titled Tuesday Blitz"]
[Site "Chess.com"]
[Date "2019.09.03"]
[Round "7"]
[White "StephenDedalus83"]
[Black "patrisiii123"]
[Result "1-0"]
[WhiteElo "2836"]
[BlackElo "2443"]
[TimeControl "180+2"]
[EndTime "16:36:34 PDT"]
[Termination "StephenDedalus83 won by checkmate"]

1. g3 {[%clk 0:02:56.2]} 1... c5 {[%clk 0:02:57.4]} 2. Bg2 {[%clk 0:02:56.9]}
2... Nc6 {[%clk 0:02:58.8]} 3. d3 {[%clk 0:02:56.2]} 3... g6 {[%clk 0:02:59.6]}
4. e4 {[%clk 0:02:55.5]} 4... Bg7 {[%clk 0:03:00.8]} 5. f4 {[%clk 0:02:57.1]}
5... d6 {[%clk 0:03:01.2]} 6. Nf3 {[%clk 0:02:58.1]} 6... h5 {[%clk 0:03:01.1]}
7. O-O {[%clk 0:02:58]} 7... Bg4 {[%clk 0:02:59.9]} 8. h3 {[%clk 0:02:56.5]}
8... Bd7 {[%clk 0:02:58.5]} 9. c3 {[%clk 0:02:56.1]} 9... e6 {[%clk 0:02:48]}
10. Be3 {[%clk 0:02:53.9]} 10... Nge7 {[%clk 0:02:48.2]} 11. Nbd2 {[%clk
0:02:54.3]} 11... Qc7 {[%clk 0:02:46.6]} 12. Rc1 {[%clk 0:02:52.5]} 12... O-O
{[%clk 0:02:43]} 13. d4 {[%clk 0:02:52.9]} 13... b6 {[%clk 0:02:32.6]} 14. Qe2
{[%clk 0:02:48.8]} 14... d5 {[%clk 0:02:29.8]} 15. e5 {[%clk 0:02:48.8]} 15...
Nf5 {[%clk 0:02:14.7]} 16. Bf2 {[%clk 0:02:49]} 16... Qb7 {[%clk 0:02:15.4]} 17.
g4 {[%clk 0:02:49.1]} 17... hxg4 {[%clk 0:02:14.5]} 18. hxg4 {[%clk 0:02:49.7]}
18... Nh6 {[%clk 0:01:52.9]} 19. Nh2 {[%clk 0:02:48.1]} 19... Rac8 {[%clk
0:01:41.9]} 20. Ndf3 {[%clk 0:02:38]} 20... cxd4 {[%clk 0:01:41.4]} 21. cxd4
{[%clk 0:02:36.4]} 21... Nb4 {[%clk 0:01:32.4]} 22. a3 {[%clk 0:02:36.5]} 22...
Nc6 {[%clk 0:01:33]} 23. g5 {[%clk 0:02:34.7]} 23... Nf5 {[%clk 0:01:32.8]} 24.
Ng4 {[%clk 0:02:35.7]} 24... Na5 {[%clk 0:01:27.9]} 25. Nf6+ {[%clk 0:02:33.5]}
25... Bxf6 {[%clk 0:01:16.4]} 26. gxf6 {[%clk 0:02:34.2]} 26... Rxc1 {[%clk
0:01:04.3]} 27. Rxc1 {[%clk 0:02:34.7]} 27... Rc8 {[%clk 0:01:06.2]} 28. Rf1
{[%clk 0:02:34.8]} 28... a6 {[%clk 0:00:59.7]} 29. Ng5 {[%clk 0:02:33.1]} 29...
Kf8 {[%clk 0:00:19.1]} 30. Qg4 {[%clk 0:02:32.8]} 30... Ke8 {[%clk 0:00:19.6]}
31. Qh3 {[%clk 0:02:29]} 31... Kd8 {[%clk 0:00:18.9]} 32. Nxf7+ {[%clk
0:02:14.8]} 32... Kc7 {[%clk 0:00:20.8]} 33. Rc1+ {[%clk 0:02:13.7]} 33... Kb8
{[%clk 0:00:22]} 34. Rxc8+ {[%clk 0:02:13.9]} 34... Qxc8 {[%clk 0:00:23.6]} 35.
Qh8 {[%clk 0:02:14.3]} 35... Kc7 {[%clk 0:00:06.3]} 36. Qxc8+ {[%clk 0:02:11.2]}
36... Bxc8 {[%clk 0:00:08.2]} 37. Nh8 {[%clk 0:02:07.7]} 37... Kd7 {[%clk
0:00:09.3]} 38. Nxg6 {[%clk 0:02:07.2]} 38... Ke8 {[%clk 0:00:10.1]} 39. Bf3
{[%clk 0:02:08.1]} 39... Nb3 {[%clk 0:00:06.5]} 40. Bh5 {[%clk 0:02:08.7]} 40...
Nbxd4 {[%clk 0:00:06.3]} 41. Bxd4 {[%clk 0:02:05.1]} 41... Nxd4 {[%clk
0:00:06.5]} 42. Ne7+ {[%clk 0:02:06.1]} 42... Kf8 {[%clk 0:00:07.8]} 43. Nxc8
{[%clk 0:02:06.7]} 43... Ne2+ {[%clk 0:00:09.7]} 44. Kf2 {[%clk 0:02:06.6]}
44... Nxf4 {[%clk 0:00:10.4]} 45. Be2 {[%clk 0:02:06.8]} 45... Ng6 {[%clk
0:00:11.1]} 46. Nxb6 {[%clk 0:02:04.2]} 46... Nxe5 {[%clk 0:00:12.1]} 47. Ke3
{[%clk 0:02:04.4]} 47... Kf7 {[%clk 0:00:13.5]} 48. Bxa6 {[%clk 0:02:04.9]}
48... Kxf6 {[%clk 0:00:14.7]} 49. Be2 {[%clk 0:02:05.7]} 49... Nc6 {[%clk
0:00:15.9]} 50. Bb5 {[%clk 0:02:04.7]} 50... Na5 {[%clk 0:00:16.1]} 51. b4
{[%clk 0:02:03.8]} 51... Nb3 {[%clk 0:00:17.3]} 52. a4 {[%clk 0:02:04.5]} 52...
Ke5 {[%clk 0:00:17.7]} 53. a5 {[%clk 0:02:04.4]} 53... Nd4 {[%clk 0:00:17.7]}
54. Ba4 {[%clk 0:02:03.9]} 54... Nf5+ {[%clk 0:00:17.6]} 55. Kd3 {[%clk
0:02:04.2]} 55... Kd6 {[%clk 0:00:19.3]} 56. a6 {[%clk 0:02:04.3]} 56... Kc7
{[%clk 0:00:20.6]} 57. a7 {[%clk 0:02:05.2]} 57... Kb7 {[%clk 0:00:21.8]} 58.
a8=Q+ {[%clk 0:02:05.5]} 58... Kxb6 {[%clk 0:00:23]} 59. Qc6+ {[%clk 0:02:06.3]}
59... Ka7 {[%clk 0:00:23.9]} 60. b5 {[%clk 0:02:07.4]} 60... e5 {[%clk
0:00:22.8]} 61. b6+ {[%clk 0:02:08]} 61... Ka6 {[%clk 0:00:22.9]} 62. Qc8+
{[%clk 0:02:04.1]} 62... Kxb6 {[%clk 0:00:23.7]} 63. Qxf5 {[%clk 0:02:04.7]}
63... e4+ {[%clk 0:00:24.2]} 64. Kd4 {[%clk 0:02:05.1]} 64... e3 {[%clk
0:00:26.1]} 65. Qxd5 {[%clk 0:02:05.6]} 65... e2 {[%clk 0:00:28]} 66. Qe6+
{[%clk 0:02:06]} 66... Ka5 {[%clk 0:00:29]} 67. Qxe2 {[%clk 0:02:07]} 67... Kb4
{[%clk 0:00:30.9]} 68. Qb5+ {[%clk 0:02:07.3]} 68... Ka3 {[%clk 0:00:32.5]} 69.
Qb3# {[%clk 0:02:08.3]} 1-0

[Event "*** Titled Tuesday Blitz"]
[Site "Chess.com"]
[Date "2019.09.03"]
[Round "7"]
[White "eljanov"]
[Black "amintabatabaei"]
[Result "1/2-1/2"]
[WhiteElo "2931"]
[BlackElo "2915"]
[TimeControl "180+2"]
[EndTime "16:36:37 PDT"]
[Termination "Game drawn by repetition"]

1. Nf3 {[%clk 0:03:01.9]} 1... d5 {[%clk 0:02:59.6]} 2. g3 {[%clk 0:03:02.6]}
2... Nf6 {[%clk 0:02:55.6]} 3. Bg2 {[%clk 0:03:03.4]} 3... e6 {[%clk 0:02:57.5]}
4. c4 {[%clk 0:03:00.9]} 4... Be7 {[%clk 0:02:59.4]} 5. O-O {[%clk 0:03:00.5]}
5... O-O {[%clk 0:03:00.1]} 6. d4 {[%clk 0:02:58.7]} 6... Nbd7 {[%clk
0:03:00.1]} 7. Qc2 {[%clk 0:02:58.3]} 7... c6 {[%clk 0:02:49.6]} 8. Nbd2 {[%clk
0:02:58.9]} 8... b6 {[%clk 0:02:51]} 9. e4 {[%clk 0:03:00.1]} 9... dxc4 {[%clk
0:02:51.1]} 10. Nxc4 {[%clk 0:02:58]} 10... Bb7 {[%clk 0:02:46.9]} 11. e5 {[%clk
0:02:22.6]} 11... Nd5 {[%clk 0:02:45.1]} 12. h4 {[%clk 0:02:23.1]} 12... c5
{[%clk 0:02:03.1]} 13. Bg5 {[%clk 0:01:59.8]} 13... cxd4 {[%clk 0:01:55.1]} 14.
Bxe7 {[%clk 0:01:09.5]} 14... Qxe7 {[%clk 0:01:57]} 15. Ng5 {[%clk 0:01:10.2]}
15... g6 {[%clk 0:01:54.9]} 16. Qd2 {[%clk 0:00:49.3]} 16... Ba6 {[%clk
0:01:43.4]} 17. b3 {[%clk 0:00:49.2]} 17... Nxe5 {[%clk 0:00:49.9]} 18. Nxe5
{[%clk 0:00:44.5]} 18... Bxf1 {[%clk 0:00:51.8]} 19. Rxf1 {[%clk 0:00:42.6]}
19... f6 {[%clk 0:00:52.8]} 20. Nc6 {[%clk 0:00:33.6]} 20... Qd6 {[%clk
0:00:52.2]} 21. Nxd4 {[%clk 0:00:29.1]} 21... fxg5 {[%clk 0:00:33.4]} 22. Nxe6
{[%clk 0:00:30.1]} 22... Rf5 {[%clk 0:00:35]} 23. Nxg5 {[%clk 0:00:21]} 23... h6
{[%clk 0:00:19.8]} 24. Rd1 {[%clk 0:00:14.1]} 24... Rd8 {[%clk 0:00:20.2]} 25.
Ne4 {[%clk 0:00:10.7]} 25... Qf8 {[%clk 0:00:21.3]} 26. g4 {[%clk 0:00:05.2]}
26... Re5 {[%clk 0:00:21.8]} 27. f4 {[%clk 0:00:05.3]} 27... Re7 {[%clk
0:00:14.4]} 28. g5 {[%clk 0:00:06.3]} 28... hxg5 {[%clk 0:00:06.1]} 29. hxg5
{[%clk 0:00:07.5]} 29... Red7 {[%clk 0:00:07.3]} 30. Qb2 {[%clk 0:00:08.4]}
30... Qxf4 {[%clk 0:00:03.5]} 31. Rxd5 {[%clk 0:00:09.4]} 31... Qe3+ {[%clk
0:00:04.9]} 32. Kh2 {[%clk 0:00:09.7]} 32... Qf4+ {[%clk 0:00:04.7]} 33. Kg1
{[%clk 0:00:10.5]} 33... Qe3+ {[%clk 0:00:05.4]} 34. Kf1 {[%clk 0:00:05]} 34...
Qf4+ {[%clk 0:00:04.3]} 35. Kg1 {[%clk 0:00:03.8]} 1/2-1/2

[Event "*** Titled Tuesday Blitz"]
[Site "Chess.com"]
[Date "2019.09.03"]
[Round "7"]
[White "Faustregel"]
[Black "Cukiero"]
[Result "1-0"]
[WhiteElo "2513"]
[BlackElo "2398"]
[TimeControl "180+2"]
[EndTime "16:36:37 PDT"]
[Termination "Faustregel won by resignation"]

1. e4 {[%clk 0:03:01.8]} 1... c5 {[%clk 0:03:00.5]} 2. Nf3 {[%clk 0:03:02.7]}
2... d6 {[%clk 0:03:01.7]} 3. d4 {[%clk 0:03:03.8]} 3... cxd4 {[%clk 0:03:03.6]}
4. Nxd4 {[%clk 0:03:05.7]} 4... Nf6 {[%clk 0:03:04.6]} 5. Nc3 {[%clk 0:03:07.2]}
5... a6 {[%clk 0:03:06.3]} 6. Bg5 {[%clk 0:03:07.8]} 6... Nbd7 {[%clk
0:03:06.2]} 7. f4 {[%clk 0:03:08.5]} 7... Qc7 {[%clk 0:03:06.6]} 8. Qf3 {[%clk
0:03:09.1]} 8... h6 {[%clk 0:03:06.9]} 9. Bxf6 {[%clk 0:03:09.9]} 9... Nxf6
{[%clk 0:03:07.4]} 10. f5 {[%clk 0:03:11.3]} 10... Qc5 {[%clk 0:03:05.5]} 11.
O-O-O {[%clk 0:02:59.2]} 11... g5 {[%clk 0:03:06.6]} 12. fxg6 {[%clk 0:02:57]}
12... Bg4 {[%clk 0:03:07.1]} 13. gxf7+ {[%clk 0:02:57.8]} 13... Kxf7 {[%clk
0:03:07.4]} 14. Qd3 {[%clk 0:02:52.2]} 14... Bxd1 {[%clk 0:03:08.4]} 15. Nxd1
{[%clk 0:02:53.3]} 15... Qe5 {[%clk 0:03:07.3]} 16. Qb3+ {[%clk 0:02:37.7]}
16... Kg7 {[%clk 0:02:42.6]} 17. Nf5+ {[%clk 0:02:12]} 17... Kg6 {[%clk
0:02:42.5]} 18. Qxb7 {[%clk 0:02:07.2]} 18... Qxe4 {[%clk 0:02:38]} 19. Bd3
{[%clk 0:01:59.7]} 19... Qxb7 {[%clk 0:02:30.2]} 20. Nxd6+ {[%clk 0:02:00.6]}
20... Kg7 {[%clk 0:02:20]} 21. Nxb7 {[%clk 0:02:00.9]} 21... e5 {[%clk
0:02:20.5]} 22. Na5 {[%clk 0:01:55.3]} 22... e4 {[%clk 0:02:18.2]} 23. Be2
{[%clk 0:01:52.5]} 23... Bd6 {[%clk 0:02:13.9]} 24. Nc4 {[%clk 0:01:48.9]} 24...
Bf4+ {[%clk 0:02:13.1]} 25. Kb1 {[%clk 0:01:50.1]} 25... Rhd8 {[%clk 0:02:06.9]}
26. c3 {[%clk 0:01:49.2]} 26... a5 {[%clk 0:02:00.8]} 27. a4 {[%clk 0:01:46.8]}
27... Nd5 {[%clk 0:01:57.3]} 28. Kc2 {[%clk 0:01:47.1]} 28... Bc7 {[%clk
0:01:42.6]} 29. g3 {[%clk 0:01:46]} 29... Nb6 {[%clk 0:01:39.1]} 30. b3 {[%clk
0:01:28.3]} 30... Nxc4 {[%clk 0:01:36.8]} 31. Bxc4 {[%clk 0:01:30.2]} 31... Rf8
{[%clk 0:01:28.1]} 32. Re1 {[%clk 0:01:30]} 32... Rae8 {[%clk 0:01:28.8]} 33.
Bd5 {[%clk 0:01:18.5]} 33... e3 {[%clk 0:01:20.4]} 34. Rxe3 {[%clk 0:01:16]}
34... Rxe3 {[%clk 0:01:19.4]} 35. Nxe3 {[%clk 0:01:17.1]} 35... Rf2+ {[%clk
0:01:20.4]} 36. Kd3 {[%clk 0:01:18.4]} 36... Rxh2 {[%clk 0:01:22.3]} 37. b4
{[%clk 0:01:14.7]} 37... axb4 {[%clk 0:01:12.1]} 38. cxb4 {[%clk 0:01:15.2]}
38... Bxg3 {[%clk 0:01:10.5]} 39. Nf5+ {[%clk 0:01:14]} 39... Kf6 {[%clk
0:01:10.9]} 40. Nxg3 {[%clk 0:01:14.9]} 40... Rh3 {[%clk 0:01:11.8]} 41. a5
{[%clk 0:01:14.4]} 41... Ke5 {[%clk 0:01:09.4]} 42. Kc4 {[%clk 0:01:07.2]} 42...
Rxg3 {[%clk 0:01:10.1]} 43. Kc5 {[%clk 0:01:01.3]} 43... Rc3+ {[%clk 0:01:09.2]}
44. Bc4 {[%clk 0:01:01.9]} 44... h5 {[%clk 0:01:02.8]} 45. a6 {[%clk 0:01:02.3]}
45... h4 {[%clk 0:01:01.1]} 46. a7 {[%clk 0:00:56.6]} 46... Ra3 {[%clk
0:01:00.5]} 47. Kb6 {[%clk 0:00:58]} 47... Rxa7 {[%clk 0:00:16.6]} 48. Kxa7
{[%clk 0:00:57.9]} 48... h3 {[%clk 0:00:18.3]} 49. Bf1 {[%clk 0:00:46.6]} 1-0

[Event "*** Titled Tuesday Blitz"]
[Site "Chess.com"]
[Date "2019.09.03"]
[Round "7"]
[White "chickencrossroad"]
[Black "newauto"]
[Result "1-0"]
[WhiteElo "2516"]
[BlackElo "1948"]
[TimeControl "180+2"]
[EndTime "16:36:51 PDT"]
[Termination "chickencrossroad won by checkmate"]

1. e4 {[%clk 0:03:01.7]} 1... c6 {[%clk 0:02:59.5]} 2. d4 {[%clk 0:03:02.7]}
2... d5 {[%clk 0:03:01.4]} 3. Nd2 {[%clk 0:03:04.3]} 3... dxe4 {[%clk
0:03:01.6]} 4. Nxe4 {[%clk 0:03:06.2]} 4... Bf5 {[%clk 0:03:02.1]} 5. Ng3 {[%clk
0:03:07.7]} 5... Bg6 {[%clk 0:03:03.2]} 6. Nf3 {[%clk 0:03:09.4]} 6... Nd7
{[%clk 0:03:02.9]} 7. Bd3 {[%clk 0:03:10.8]} 7... e6 {[%clk 0:02:58.7]} 8. O-O
{[%clk 0:03:11.3]} 8... Ngf6 {[%clk 0:02:58.1]} 9. Re1 {[%clk 0:03:12.7]} 9...
Qc7 {[%clk 0:02:55.5]} 10. c4 {[%clk 0:03:05.3]} 10... O-O-O {[%clk 0:02:50.1]}
11. Bxg6 {[%clk 0:02:53.7]} 11... hxg6 {[%clk 0:02:49.1]} 12. Ng5 {[%clk
0:02:55.3]} 12... Nb6 {[%clk 0:02:43.2]} 13. Qe2 {[%clk 0:02:25.1]} 13... Nh5
{[%clk 0:02:36.7]} 14. Be3 {[%clk 0:02:05.3]} 14... Nf4 {[%clk 0:02:23.6]} 15.
Qf3 {[%clk 0:02:00.7]} 15... Nd3 {[%clk 0:01:53]} 16. Nxf7 {[%clk 0:01:30.8]}
16... Nxe1 {[%clk 0:01:51.6]} 17. Rxe1 {[%clk 0:01:32.7]} 17... Bb4 {[%clk
0:01:48.3]} 18. Nxd8 {[%clk 0:00:41.4]} 18... Bxe1 {[%clk 0:01:43.3]} 19. Nxe6
{[%clk 0:00:42.9]} 19... Qe7 {[%clk 0:01:35.9]} 20. Qg4 {[%clk 0:00:17.8]} 20...
Rh4 {[%clk 0:01:30.5]} 21. Qxg6 {[%clk 0:00:16.5]} 21... Nxc4 {[%clk 0:01:26.2]}
22. Bg5 {[%clk 0:00:14]} 22... Rg4 {[%clk 0:01:22.7]} 23. Qf5 {[%clk 0:00:09.5]}
23... Rxg5 {[%clk 0:00:52]} 24. Nxg5+ {[%clk 0:00:10]} 24... Kb8 {[%clk
0:00:51.3]} 25. Ne6 {[%clk 0:00:10.9]} 25... Bb4 {[%clk 0:00:45.9]} 26. Ne4
{[%clk 0:00:04.1]} 26... a6 {[%clk 0:00:38.9]} 27. g3 {[%clk 0:00:05.4]} 27...
Ka7 {[%clk 0:00:37.7]} 28. b3 {[%clk 0:00:05.9]} 28... Nd6 {[%clk 0:00:36.8]}
29. Nxd6 {[%clk 0:00:06.4]} 29... Bxd6 {[%clk 0:00:34.7]} 30. Kg2 {[%clk
0:00:07.3]} 30... Qd7 {[%clk 0:00:31.4]} 31. Qe4 {[%clk 0:00:06.2]} 31... Qe7
{[%clk 0:00:21.2]} 32. h4 {[%clk 0:00:06.8]} 32... Qf7 {[%clk 0:00:17.9]} 33.
Ng5 {[%clk 0:00:07.4]} 33... Qc7 {[%clk 0:00:14.2]} 34. Qg6 {[%clk 0:00:06.7]}
34... c5 {[%clk 0:00:13.2]} 35. d5 {[%clk 0:00:08.1]} 35... c4 {[%clk
0:00:11.8]} 36. bxc4 {[%clk 0:00:06.5]} 36... Be5 {[%clk 0:00:13.4]} 37. Qe4
{[%clk 0:00:06.2]} 37... Bf6 {[%clk 0:00:13.5]} 38. Ne6 {[%clk 0:00:07.2]} 38...
Qd6 {[%clk 0:00:12.9]} 39. c5 {[%clk 0:00:08.2]} 39... Qd7 {[%clk 0:00:12.2]}
40. c6 {[%clk 0:00:09.2]} 40... bxc6 {[%clk 0:00:12.5]} 41. dxc6 {[%clk
0:00:11.1]} 41... Qd6 {[%clk 0:00:11.3]} 42. c7 {[%clk 0:00:07.2]} 42... Qd7
{[%clk 0:00:08.2]} 43. Qb4 {[%clk 0:00:05.2]} 43... Qxe6 {[%clk 0:00:07.8]} 44.
Qb8# {[%clk 0:00:05.9]} 1-0

[Event "*** Titled Tuesday Blitz"]
[Site "Chess.com"]
[Date "2019.09.03"]
[Round "7"]
[White "DarkAlekhine"]
[Black "ahkashefi2800"]
[Result "0-1"]
[WhiteElo "2478"]
[BlackElo "2137"]
[TimeControl "180+2"]
[EndTime "16:36:57 PDT"]
[Termination "ahkashefi2800 won on time"]

1. e4 {[%clk 0:03:01.9]} 1... c6 {[%clk 0:02:55.8]} 2. d4 {[%clk 0:03:01.6]}
2... d5 {[%clk 0:02:56.7]} 3. e5 {[%clk 0:03:03]} 3... Bf5 {[%clk 0:02:48.1]} 4.
Nf3 {[%clk 0:03:01.9]} 4... e6 {[%clk 0:02:48.2]} 5. Be2 {[%clk 0:03:01.6]} 5...
Ne7 {[%clk 0:02:47.6]} 6. O-O {[%clk 0:03:00.7]} 6... Bg6 {[%clk 0:02:48.5]} 7.
Nbd2 {[%clk 0:03:00.4]} 7... Nf5 {[%clk 0:02:47.5]} 8. Nb3 {[%clk 0:03:01]} 8...
Nd7 {[%clk 0:02:46.9]} 9. Bd2 {[%clk 0:02:54.3]} 9... a6 {[%clk 0:02:45.3]} 10.
Na5 {[%clk 0:02:51.9]} 10... Rb8 {[%clk 0:02:36.5]} 11. Rc1 {[%clk 0:02:49.3]}
11... Be7 {[%clk 0:02:29.5]} 12. c4 {[%clk 0:02:43.3]} 12... O-O {[%clk
0:02:28.2]} 13. cxd5 {[%clk 0:02:28.6]} 13... exd5 {[%clk 0:02:27.2]} 14. Qb3
{[%clk 0:02:18.9]} 14... Re8 {[%clk 0:02:25.6]} 15. Rfe1 {[%clk 0:02:18.3]}
15... Nf8 {[%clk 0:02:24.6]} 16. Nxb7 {[%clk 0:01:28.9]} 16... Qd7 {[%clk
0:02:22.9]} 17. Bxa6 {[%clk 0:01:26.5]} 17... Ne6 {[%clk 0:02:23]} 18. Qb6
{[%clk 0:01:24.5]} 18... Rec8 {[%clk 0:02:14.6]} 19. b4 {[%clk 0:01:14.7]} 19...
Bh5 {[%clk 0:02:12.9]} 20. b5 {[%clk 0:01:09.9]} 20... cxb5 {[%clk 0:02:04.8]}
21. Rxc8+ {[%clk 0:01:11.8]} 21... Qxc8 {[%clk 0:02:05.1]} 22. Rc1 {[%clk
0:01:12.7]} 22... Qd7 {[%clk 0:01:51.1]} 23. Be3 {[%clk 0:00:47.3]} 23... Bxf3
{[%clk 0:01:50.6]} 24. gxf3 {[%clk 0:00:49.2]} 24... g5 {[%clk 0:01:50.7]} 25.
Qa7 {[%clk 0:00:26]} 25... Rf8 {[%clk 0:01:35.6]} 26. Qb6 {[%clk 0:00:26.1]}
26... Rb8 {[%clk 0:01:35.4]} 27. Qa7 {[%clk 0:00:21.2]} 27... Rf8 {[%clk
0:01:34.1]} 28. Kf1 {[%clk 0:00:18.4]} 28... Bb4 {[%clk 0:00:53.8]} 29. Ke2
{[%clk 0:00:13.6]} 29... Nfxd4+ {[%clk 0:00:50.7]} 30. Bxd4 {[%clk 0:00:14.3]}
30... Nf4+ {[%clk 0:00:51.3]} 31. Ke3 {[%clk 0:00:12.1]} 31... Qh3 {[%clk
0:00:53.2]} 32. Qb6 {[%clk 0:00:08.4]} 32... Ng2+ {[%clk 0:00:50.5]} 33. Ke2
{[%clk 0:00:09]} 33... Nf4+ {[%clk 0:00:43.8]} 34. Ke3 {[%clk 0:00:10.4]} 34...
g4 {[%clk 0:00:40.7]} 35. Kxf4 {[%clk 0:00:05]} 35... Qxf3+ {[%clk 0:00:41.2]}
36. Kg5 {[%clk 0:00:05.9]} 36... Be7+ {[%clk 0:00:43.1]} 37. Qf6 {[%clk
0:00:05.1]} 37... Bxf6+ {[%clk 0:00:42.7]} 38. exf6 {[%clk 0:00:07]} 38... h6+
{[%clk 0:00:44.4]} 39. Kxh6 {[%clk 0:00:06.2]} 39... Qf4+ {[%clk 0:00:41.3]} 40.
Kh5 {[%clk 0:00:06.5]} 40... Qxc1 {[%clk 0:00:36.2]} 41. Nd6 {[%clk 0:00:07.8]}
41... Qc6 {[%clk 0:00:28.1]} 42. Nf5 {[%clk 0:00:06.5]} 42... Qxa6 {[%clk
0:00:28.3]} 43. Kh6 {[%clk 0:00:04]} 43... Re8 {[%clk 0:00:24.1]} 0-1

[Event "*** Titled Tuesday Blitz"]
[Site "Chess.com"]
[Date "2019.09.03"]
[Round "7"]
[White "kleinebeer98"]
[Black "promen1999"]
[Result "0-1"]
[WhiteElo "2672"]
[BlackElo "2756"]
[TimeControl "180+2"]
[EndTime "16:37:02 PDT"]
[Termination "promen1999 won by checkmate"]

1. e4 {[%clk 0:03:01.9]} 1... c6 {[%clk 0:02:59.1]} 2. d4 {[%clk 0:03:02.9]}
2... d5 {[%clk 0:02:59.4]} 3. f3 {[%clk 0:03:04.3]} 3... e6 {[%clk 0:03:00]} 4.
Nc3 {[%clk 0:03:05.2]} 4... a6 {[%clk 0:03:01.6]} 5. Bd3 {[%clk 0:03:06.3]} 5...
b5 {[%clk 0:03:03]} 6. Be3 {[%clk 0:03:05.2]} 6... Bb7 {[%clk 0:02:57.7]} 7.
Nge2 {[%clk 0:03:01.7]} 7... Nf6 {[%clk 0:02:58.7]} 8. O-O {[%clk 0:03:01.4]}
8... Be7 {[%clk 0:03:00.2]} 9. Ng3 {[%clk 0:03:01]} 9... O-O {[%clk 0:02:59.9]}
10. e5 {[%clk 0:03:00.4]} 10... Nfd7 {[%clk 0:02:59.8]} 11. f4 {[%clk
0:03:01.6]} 11... c5 {[%clk 0:03:00]} 12. Bxh7+ {[%clk 0:02:43.2]} 12... Kxh7
{[%clk 0:02:59.7]} 13. Qh5+ {[%clk 0:02:45.1]} 13... Kg8 {[%clk 0:03:01]} 14. f5
{[%clk 0:02:47]} 14... cxd4 {[%clk 0:02:54.8]} 15. Bxd4 {[%clk 0:02:37.2]} 15...
Nc6 {[%clk 0:02:51.5]} 16. f6 {[%clk 0:02:14.1]} 16... Nxd4 {[%clk 0:01:43.7]}
17. fxg7 {[%clk 0:01:47.3]} 17... Kxg7 {[%clk 0:01:34.8]} 18. Qg4+ {[%clk
0:01:33.6]} 18... Kh8 {[%clk 0:01:33.2]} 19. Nh5 {[%clk 0:01:01.3]} 19... Rg8
{[%clk 0:00:59.5]} 20. Qh3 {[%clk 0:00:59.6]} 20... Bh4 {[%clk 0:01:00.9]} 21.
Nf6 {[%clk 0:00:44.3]} 21... Nxf6 {[%clk 0:00:50.6]} 22. exf6 {[%clk 0:00:36.8]}
22... Rg6 {[%clk 0:00:44.7]} 23. Qxh4+ {[%clk 0:00:36.5]} 23... Kg8 {[%clk
0:00:46.2]} 24. Qxd4 {[%clk 0:00:37.9]} 24... Rc8 {[%clk 0:00:36.1]} 25. Rae1
{[%clk 0:00:30.8]} 25... Rc4 {[%clk 0:00:35.7]} 26. Qa7 {[%clk 0:00:30]} 26...
Qc7 {[%clk 0:00:30.1]} 27. Rf2 {[%clk 0:00:19.8]} 27... d4 {[%clk 0:00:25.6]}
28. Ne2 {[%clk 0:00:13.8]} 28... e5 {[%clk 0:00:12.2]} 29. Ng3 {[%clk
0:00:11.3]} 29... Bd5 {[%clk 0:00:02.8]} 30. Qxc7 {[%clk 0:00:09.2]} 30... Rxc7
{[%clk 0:00:04.7]} 31. Rxe5 {[%clk 0:00:10.4]} 31... Bxa2 {[%clk 0:00:05.1]} 32.
Re8+ {[%clk 0:00:09.6]} 32... Kh7 {[%clk 0:00:06.7]} 33. Rf4 {[%clk 0:00:11.4]}
33... Be6 {[%clk 0:00:05.2]} 34. Rxd4 {[%clk 0:00:06.1]} 34... Rxc2 {[%clk
0:00:06.3]} 35. Rh4+ {[%clk 0:00:03.8]} 35... Rh6 {[%clk 0:00:07.6]} 36. Rxe6
{[%clk 0:00:04.5]} 36... Rc1+ {[%clk 0:00:04.1]} 37. Kf2 {[%clk 0:00:04.9]}
37... Rxh4 {[%clk 0:00:05.7]} 38. Re7 {[%clk 0:00:05.4]} 38... Rf4+ {[%clk
0:00:07.2]} 39. Ke3 {[%clk 0:00:06.2]} 39... Rxf6 {[%clk 0:00:08.7]} 40. Ra7
{[%clk 0:00:07.6]} 40... Re1+ {[%clk 0:00:10]} 41. Kd2 {[%clk 0:00:06.8]} 41...
Ree6 {[%clk 0:00:11.7]} 42. Nh5 {[%clk 0:00:05.1]} 42... Rf2+ {[%clk 0:00:13.2]}
43. Kc3 {[%clk 0:00:05.9]} 43... Kg6 {[%clk 0:00:13]} 44. g4 {[%clk 0:00:07]}
44... Rf3+ {[%clk 0:00:13.6]} 45. Kb4 {[%clk 0:00:07.4]} 45... Re4+ {[%clk
0:00:15.1]} 46. Ka5 {[%clk 0:00:08.8]} 46... Ra4+ {[%clk 0:00:16.1]} 47. Kb6
{[%clk 0:00:10.2]} 47... Rxg4 {[%clk 0:00:16.8]} 48. Ng3 {[%clk 0:00:09.6]}
48... Rf6+ {[%clk 0:00:18.3]} 49. Ka5 {[%clk 0:00:10.2]} 49... Ra4# {[%clk
0:00:19.3]} 0-1